fUST/lending_fUST_20260107
["ID","MTS","AMOUNT","RATE_DAILY","PERIOD"]
[400635915,1767755448957,-151.0,0.00031506,31]
[400635917,1767755448966,-151.0,0.00031506,31]
[400635919,1767755448976,-790.205655,0.00031506,31]
[400635921,1767755448985,-151.0,0.00031506,2]
[400635923,1767755448995,-790.205655,0.00031506,31]
[400635925,1767755449004,-151.0,0.00031506,2]
[400635927,1767755449014,-790.205655,0.00031506,31]
[400635929,1767755449024,-507.0,0.00031507,14]
[400635931,1767755449033,-151.0,0.00031549,31]
[400635933,1767755449043,-153.995133,0.00031549,31]
[400635935,1767755449053,-153.803274,0.00031549,31]
[400635937,1767755449063,-500.0,0.00031549,31]
[400635939,1767755449073,-500.0,0.00031549,31]
[400635941,1767755449083,-500.0,0.00031549,31]
[400635943,1767755449093,-500.0,0.00031549,31]
[400635945,1767755449102,-151.0,0.00031549,31]
[400635947,1767755449112,-151.0,0.00031549,31]
[400635949,1767755449122,-151.0,0.00031549,31]
[400635951,1767755449131,-151.0,0.00031549,31]
[400635953,1767755449141,-151.0,0.00031549,31]
[400635955,1767755449150,-151.0,0.00031549,31]
[400635957,1767755449160,-151.0,0.00031549,31]
[400635959,1767755449169,-269.907939,0.00031549,31]
[400635961,1767755449179,-151.0,0.00031549,31]
[400635973,1767755449290,-159.827816,0.00031549,31]
[400635974,1767755449301,-151.0,0.00031549,31]
[400635975,1767755449311,-151.0,0.00031549,31]
[400635976,1767755449320,-151.0,0.00031549,31]
[400635977,1767755449329,-151.0,0.00031549,31]
[400635978,1767755449338,-156.273726,0.00031549,31]
[400635979,1767755449348,-2711.140838,0.00031549,31]
[400635980,1767755449357,-156.273726,0.00031549,31]
[400635981,1767755449366,-2711.140838,0.00031549,31]
[400635982,1767755449376,-156.273726,0.00031549,31]
[400635983,1767755449385,-2711.140838,0.00031549,31]
[400635984,1767755449395,-156.273726,0.00031549,31]
[400635985,1767755449404,-2711.140838,0.00031549,31]
[400635986,1767755449414,-324.878871,0.00031549,31]
[400635987,1767755449424,-324.878871,0.00031549,31]
[400635988,1767755449438,-324.878871,0.00031549,31]
[400635989,1767755449448,-324.878871,0.00031549,31]
[400635990,1767755449457,-151.0,0.00031549,31]
[400635991,1767755449467,-151.0,0.00031549,31]
[400635992,1767755449476,-151.0,0.00031549,31]
[400635993,1767755449486,-308.020473,0.00031549,31]
[400635994,1767755449495,-308.020473,0.00031549,31]
[400635995,1767755449505,-308.020473,0.00031549,31]
[400635996,1767755449514,-308.020473,0.00031549,31]
[400635997,1767755449524,-161.666367,0.00031549,31]
[400635998,1767755449533,-310.549692,0.00031549,31]
[400635999,1767755449543,-310.549692,0.00031549,31]
[400636000,1767755449552,-310.549692,0.00031549,31]
[400636001,1767755449562,-310.549692,0.00031549,31]
[400636002,1767755449572,-210.445143,0.00031549,31]
[400636003,1767755449581,-210.445143,0.00031549,31]
[400636004,1767755449591,-210.445143,0.00031549,31]
[400636005,1767755449600,-210.445143,0.00031549,31]
[400636006,1767755449610,-292.415007,0.00031549,31]
[400636007,1767755449622,-292.415007,0.00031549,31]
[400636008,1767755449632,-292.415007,0.00031549,31]
[400636009,1767755449642,-292.415007,0.00031549,31]
[400636010,1767755449652,-157.736592,0.00031549,31]
[400636011,1767755449661,-391.28206,0.00031549,31]
[400636012,1767755449670,-391.28206,0.00031549,31]
[400636013,1767755449682,-391.28206,0.00031549,31]
[400636014,1767755449692,-391.28206,0.00031549,31]
[400636015,1767755449701,-1322.532901,0.00031549,28]
[400636016,1767755449712,-1322.532901,0.00031549,28]
[400636017,1767755449724,-1322.532901,0.00031549,28]
[400636018,1767755449734,-151.0,0.00031549,31]
[400636019,1767755449743,-1322.532901,0.00031549,28]
[400636020,1767755449753,-500.0,0.00031562,7]
[400636021,1767755449763,-166.0,0.00031644,14]
[400636022,1767755449773,-507.0,0.00031644,14]
[400636023,1767755449782,-500.0,0.00031645,7]
[400636024,1767755449792,-300.0,0.00031671,2]
[400636025,1767755449801,-300.0,0.00031671,2]
[400636026,1767755449810,-300.0,0.00031671,2]
[400636027,1767755449819,-300.0,0.00031671,2]
[400636028,1767755449828,-300.0,0.00031671,2]
[400636029,1767755449838,-300.0,0.00031671,2]
[400636030,1767755449849,-300.0,0.00031671,2]
[400636031,1767755449858,-300.0,0.00031671,2]
[400636032,1767755449868,-300.0,0.00031671,2]
[400636033,1767755449877,-995.3526357,0.00031693,7]
[400636034,1767755449886,-300.0,0.00031699,2]
[400636035,1767755449895,-300.0,0.00031699,2]
[400636036,1767755449905,-300.0,0.00031699,2]
[400636037,1767755449914,-300.0,0.00031699,2]
[400636038,1767755449924,-300.0,0.00031699,2]
[400636039,1767755449933,-300.0,0.00031699,2]
[400636040,1767755449943,-300.0,0.00031699,2]
[400636041,1767755449952,-300.0,0.00031699,2]
[400636042,1767755449961,-300.0,0.00031699,2]
[400636043,1767755449971,-300.0,0.00031699,2]
[400636044,1767755449981,-300.0,0.00031699,2]
[400636045,1767755449991,-300.0,0.00031699,2]
[400636046,1767755450000,-300.0,0.00031699,2]
[400636047,1767755450011,-300.0,0.00031699,2]
[400636048,1767755450021,-300.0,0.00031699,2]
[400636049,1767755450034,-300.0,0.00031699,2]
[400636050,1767755450044,-300.0,0.00031699,2]
[400636051,1767755450054,-300.0,0.00031699,2]
[400636053,1767755450064,-300.0,0.00031699,2]
[400636054,1767755450073,-300.0,0.00031699,2]
[400636055,1767755450083,-300.0,0.00031699,2]
[400636056,1767755450093,-300.0,0.00031699,2]
[400636057,1767755450103,-300.0,0.00031699,2]
[400636058,1767755450112,-2385.21,0.000317,7]
[400636059,1767755450122,-500.0,0.00031781,15]
[400636060,1767755450132,-950.0,0.00031781,5]
[400636061,1767755450142,-349.207266,0.00031796,31]
[400636062,1767755450152,-349.207266,0.00031796,31]
[400636063,1767755450161,-349.207266,0.00031796,31]
[400636064,1767755450170,-349.207266,0.00031796,31]
[400636065,1767755450181,-401.67446,0.00031796,31]
[400636066,1767755450190,-401.67446,0.00031796,31]
[400636067,1767755450200,-401.67446,0.00031796,31]
[400636068,1767755450209,-401.67446,0.00031796,31]
[400636069,1767755450218,-883.518597,0.00031796,31]
[400636070,1767755450227,-883.518597,0.00031796,31]
[400636071,1767755450236,-883.518597,0.00031796,31]
[400636072,1767755450246,-883.518597,0.00031796,31]
[400636073,1767755450255,-364.504181,0.00031796,31]
[400636074,1767755450265,-364.504181,0.00031796,31]
[400636075,1767755450275,-364.504181,0.00031796,31]
[400636076,1767755450284,-364.504181,0.00031796,31]
[400636077,1767755450294,-5000.0,0.00031796,2]
[400636078,1767755450304,-322.65,0.000318,7]
[400636079,1767755450313,-303.84,0.000318,7]
[400636080,1767755450323,-3761.70945867,0.00031822,7]
[400636081,1767755450332,-2000.0,0.00031881,7]
[400636082,1767755450341,-190.27089289,0.000319,120]
[400636083,1767755450351,-613.56156713,0.000319,120]
[400636084,1767755450361,-30218.83783389,0.00032,30]
[400636085,1767755450370,-28848.38,0.00032,2]
[400636086,1767755450379,-1019.0,0.00032,7]
[400636087,1767755450390,-1041.66666667,0.00032,30]
[400636088,1767755450400,-689.7,0.00032054,32]
[400636089,1767755450410,-153.030847,0.0003209,31]
[400636090,1767755450420,-152.289272,0.0003209,31]
[400636091,1767755450429,-151.0,0.0003209,31]
[400636092,1767755450438,-151.0,0.0003209,31]
[400636093,1767755450448,-151.0,0.0003209,31]
[400636094,1767755450458,-151.0,0.0003209,31]
[400636095,1767755450467,-158.997356,0.0003209,31]
[400636096,1767755450477,-151.0,0.0003209,31]
[400636097,1767755450487,-158.997356,0.0003209,31]
[400636098,1767755450496,-151.0,0.0003209,31]
[400636099,1767755450506,-158.997356,0.0003209,31]
[400636100,1767755450515,-158.997356,0.0003209,31]
[400636101,1767755450525,-151.0,0.0003209,31]
[400636102,1767755450534,-167.815461,0.0003209,31]
[400636103,1767755450544,-4235.77117212,0.00032163,2]
[400636104,1767755450554,-509.74742875,0.00032163,2]
[400636105,1767755450563,-2036.9507253,0.00032163,2]
[400636106,1767755450573,-212.19635655,0.00032163,2]
[400636107,1767755450583,-847.93664077,0.00032163,2]
[400636108,1767755450592,-3647.67823713,0.00032163,2]
[400636109,1767755450602,-6484.76131045,0.00032163,2]
[400636110,1767755450612,-10132.43954757,0.00032163,2]
[400636111,1767755450622,-725.27235393,0.00032163,2]
[400636112,1767755450631,-324.38326519,0.00032163,2]
[400636113,1767755450641,-1296.23552771,0.00032163,2]
[400636114,1767755450650,-2301.8847989,0.00032182,2]
[400636115,1767755450659,-151.0,0.00032219,31]
[400636116,1767755450668,-151.0,0.00032219,31]
[400636117,1767755450680,-151.0,0.00032219,31]
[400636118,1767755450698,-151.0,0.00032219,31]
[400636119,1767755450709,-500.0,0.00032329,15]
[400636120,1767755450719,-1051.53804054,0.00032329,5]
[400636121,1767755450729,-895.0,0.00032347,30]
[400636122,1767755450738,-284.0,0.00032347,30]
[400636123,1767755450748,-870.0,0.00032347,30]
[400636124,1767755450757,-10000.0,0.000324,120]
[400636125,1767755450766,-156.0,0.00032438,53]
[400636126,1767755450776,-182.16742823,0.00032571,2]
[400636127,1767755450785,-151.0,0.00032571,2]
[400636128,1767755450795,-689.7,0.00032602,33]
[400636129,1767755450805,-151.0,0.00032638,31]
[400636130,1767755450814,-151.0,0.00032638,31]
[400636131,1767755450823,-151.0,0.00032638,31]
[400636132,1767755450832,-151.0,0.00032638,31]
[400636133,1767755450841,-267.096585,0.00032638,31]
[400636134,1767755450851,-151.0,0.00032638,31]
[400636135,1767755450860,-151.0,0.00032638,31]
[400636136,1767755450869,-151.0,0.00032638,31]
[400636137,1767755450878,-151.0,0.00032638,31]
[400636138,1767755450888,-151.0,0.00032638,31]
[400636139,1767755450898,-186.722049,0.00032638,31]
[400636140,1767755450907,-2000.0,0.00032693,7]
[400636141,1767755450917,-519.1,0.00032702,5]
[400636142,1767755450927,-5000.0,0.00032725,2]
[400636143,1767755450937,-559.43044828,0.00032803,2]
[400636144,1767755450947,-15250.14056551,0.00032874,2]
[400636145,1767755450956,-1615.48,0.00032876,120]
[400636146,1767755450966,-500.0,0.00032877,30]
[400636147,1767755450976,-48416.12,0.00032877,10]
[400636148,1767755450985,-613.56156713,0.000329,120]
[400636149,1767755450995,-4188.1973885,0.00032906,34]
[400636150,1767755451007,-507.0,0.0003291,30]
[400636151,1767755451017,-2750.64,0.00033,30]
[400636152,1767755451028,-1041.66666667,0.00033,120]
[400636153,1767755451038,-1041.66666667,0.00033,10]
[400636154,1767755451047,-8469.53466117,0.00033045,2]
[400636155,1767755451057,-2385.21,0.000331,7]
[400636156,1767755451067,-3659.53935701,0.00033123,2]
[400636157,1767755451076,-689.7,0.0003315,34]
[400636158,1767755451085,-161.86525392,0.000332,117]
[400636159,1767755451094,-161.86525391,0.000332,117]
[400636160,1767755451103,-1695.5655,0.0003322,30]
[400636161,1767755451113,-523.0,0.00033226,30]
[400636162,1767755451123,-322.65,0.000334,7]
[400636163,1767755451132,-303.84,0.000334,7]
[400636164,1767755451142,-500.0,0.00033425,30]
[400636165,1767755451236,-2000.0,0.00033505,7]
[400636166,1767755451246,-376.8907928,0.00033589,30]
[400636167,1767755451255,-376.8907927,0.00033589,30]
[400636168,1767755451264,-376.8907927,0.00033589,30]
[400636169,1767755451273,-376.8907927,0.00033589,30]
[400636170,1767755451283,-376.8907927,0.00033589,30]
[400636171,1767755451294,-376.8907927,0.00033589,30]
[400636172,1767755451303,-753.7108286,0.00033589,30]
[400636173,1767755451312,-376.8907927,0.00033589,30]
[400636174,1767755451323,-376.8907927,0.00033589,30]
[400636175,1767755451332,-376.8907927,0.00033589,30]
[400636176,1767755451342,-376.8907927,0.00033589,30]
[400636177,1767755451352,-376.8907927,0.00033589,30]
[400636178,1767755451364,-376.8907927,0.00033589,30]
[400636179,1767755451374,-1000.0,0.00033602,30]
[400636180,1767755451383,-1000.0,0.00033602,30]
[400636181,1767755451394,-1000.0,0.00033602,30]
[400636182,1767755451403,-5000.0,0.00033653,3]
[400636183,1767755451414,-689.7,0.00033698,35]
[400636184,1767755451424,-210.0,0.00033699,5]
[400636185,1767755451434,-38000.0,0.00033711,10]
[400636186,1767755451444,-38000.0,0.0003372,10]
[400636187,1767755451454,-38000.0,0.00033723,10]
[400636188,1767755451464,-19216.14087235,0.00033736,10]
[400636189,1767755451473,-613.56156713,0.000339,120]
[400636190,1767755451483,-151.89443463,0.0003394,2]
[400636191,1767755451492,-5832.15518245,0.00033942,2]
[400636192,1767755451502,-517.09,0.00033973,30]
[400636193,1767755451512,-180.37692737,0.00034,120]
[400636194,1767755451523,-1041.66666667,0.00034,10]
[400636195,1767755451533,-153.0,0.00034137,30]
[400636196,1767755451543,-193.7694829,0.00034137,30]
[400636197,1767755451553,-184.409231,0.00034137,30]
[400636198,1767755451562,-153.0,0.00034137,30]
[400636199,1767755451573,-153.0,0.00034137,30]
[400636200,1767755451582,-184.409231,0.00034137,30]
[400636201,1767755451592,-184.409231,0.00034137,30]
[400636202,1767755451601,-153.0,0.00034137,30]
[400636203,1767755451612,-184.409231,0.00034137,30]
[400636204,1767755451622,-153.0,0.00034137,30]
[400636205,1767755451633,-184.409231,0.00034137,30]
[400636206,1767755451643,-184.409231,0.00034137,30]
[400636207,1767755451654,-155.2827196,0.00034137,30]
[400636208,1767755451663,-189.4774255,0.00034137,30]
[400636209,1767755451673,-184.409231,0.00034137,30]
[400636210,1767755451684,-184.409231,0.00034137,30]
[400636211,1767755451694,-184.409231,0.00034137,30]
[400636212,1767755451703,-184.409231,0.00034137,30]
[400636213,1767755451713,-184.409231,0.00034137,30]
[400636214,1767755451723,-184.409231,0.00034137,30]
[400636215,1767755451733,-246.267723,0.00034137,31]
[400636216,1767755451743,-246.267723,0.00034137,31]
[400636217,1767755451753,-246.267723,0.00034137,31]
[400636218,1767755451763,-246.267723,0.00034137,31]
[400636219,1767755451772,-342.903353,0.00034137,31]
[400636220,1767755451782,-342.903353,0.00034137,31]
[400636221,1767755451797,-342.903353,0.00034137,31]
[400636222,1767755451808,-342.903353,0.00034137,31]
[400636223,1767755451817,-151.0,0.00034137,31]
[400636224,1767755451827,-2600.536544,0.00034137,31]
[400636225,1767755451836,-2600.536544,0.00034137,31]
[400636226,1767755451846,-449.104289,0.00034137,8]
[400636227,1767755451856,-430.552519,0.00034137,31]
[400636228,1767755451865,-449.104289,0.00034137,8]
[400636229,1767755451875,-430.552519,0.00034137,31]
[400636230,1767755451884,-449.104289,0.00034137,8]
[400636231,1767755451894,-430.552519,0.00034137,31]
[400636232,1767755451903,-430.552519,0.00034137,31]
[400636233,1767755451913,-449.104289,0.00034137,8]
[400636234,1767755451922,-285.036725,0.00034137,31]
[400636235,1767755451933,-285.036725,0.00034137,31]
[400636236,1767755451950,-285.036725,0.00034137,31]
[400636237,1767755451963,-285.036725,0.00034137,31]
[400636238,1767755451972,-507.0,0.00034175,30]
[400636239,1767755451982,-507.0,0.00034175,30]
[400636240,1767755451992,-591.7992,0.000342,10]
[400636241,1767755452002,-689.7,0.00034246,36]
[400636242,1767755452012,-1615.48,0.00034246,120]
[400636243,1767755452021,-519.1,0.00034287,6]
[400636244,1767755452030,-2000.0,0.00034317,7]
[400636245,1767755452042,-727.0,0.00034338,11]
[400636246,1767755452052,-4542.58214008,0.00034341,36]
[400636247,1767755452062,-270.0,0.00034521,5]
[400636248,1767755452072,-376.8907927,0.00034548,30]
[400636249,1767755452083,-374.2881476,0.00034548,30]
[400636250,1767755452092,-376.8907927,0.00034548,30]
[400636251,1767755452102,-376.8907927,0.00034548,30]
[400636252,1767755452111,-376.8907927,0.00034548,30]
[400636253,1767755452121,-376.8907927,0.00034548,30]
[400636254,1767755452131,-376.8907927,0.00034548,30]
[400636255,1767755452141,-5000.0,0.00034582,3]
[400636256,1767755452151,-152.81,0.0003467,60]
[400636257,1767755452161,-173.06,0.0003467,60]
[400636258,1767755452169,-1518.18,0.0003467,60]
[400636259,1767755452179,-727.0,0.00034708,11]
[400636260,1767755452189,-151.0,0.0003477,31]
[400636261,1767755452200,-286.042997,0.0003477,31]
[400636262,1767755452210,-151.0,0.0003477,31]
[400636263,1767755452219,-151.0,0.0003477,31]
[400636264,1767755452229,-152.81,0.0003477,60]
[400636265,1767755452239,-173.06,0.0003477,60]
[400636266,1767755452249,-1518.18,0.0003477,60]
[400636267,1767755452259,-689.7,0.00034794,37]
[400636268,1767755452270,-595.39383424,0.00034803,120]
[400636269,1767755452280,-514.20709162,0.00034866,2]
[400636270,1767755452290,-2056.82836649,0.00034866,2]
[400636271,1767755452301,-4627.86382461,0.00034866,2]
[400636272,1767755452311,-8219.0861525,0.00034866,2]
[400636273,1767755452321,-151.0,0.00034866,31]
[400636274,1767755452330,-151.0,0.00034866,31]
[400636275,1767755452340,-151.0,0.00034866,31]
[400636276,1767755452349,-233.211814,0.00034866,31]
[400636277,1767755452359,-790.205655,0.00034866,31]
[400636278,1767755452370,-151.0,0.00034866,2]
[400636279,1767755452380,-790.205655,0.00034866,31]
[400636280,1767755452390,-224.949842,0.00034866,2]
[400636281,1767755452401,-790.205655,0.00034866,31]
[400636282,1767755452411,-152.81,0.0003487,60]
[400636283,1767755452421,-173.07658416,0.0003487,60]
[400636284,1767755452431,-1518.18,0.0003487,60]
[400636285,1767755452441,-613.56156713,0.000349,120]
[400636286,1767755452451,-184.409231,0.00034959,30]
[400636287,1767755452461,-184.409231,0.00034959,30]
[400636288,1767755452471,-184.409231,0.00034959,30]
[400636289,1767755452480,-184.409231,0.00034959,30]
[400636290,1767755452490,-184.409231,0.00034959,30]
[400636291,1767755452500,-612.0594184,0.00034959,30]
[400636292,1767755452509,-184.409231,0.00034959,30]
[400636293,1767755452519,-193.7694829,0.00034959,30]
[400636294,1767755452529,-153.0,0.00034959,30]
[400636295,1767755452539,-184.409231,0.00034959,30]
[400636296,1767755452548,-600.7991864,0.00034959,30]
[400636297,1767755452558,-184.409231,0.00034959,30]
[400636298,1767755452568,-184.409231,0.00034959,30]
[400636299,1767755452577,-153.0,0.00034959,30]
[400636300,1767755452586,-600.7991864,0.00034959,30]
[400636301,1767755452596,-193.7694829,0.00034959,30]
[400636302,1767755452606,-184.409231,0.00034959,30]
[400636303,1767755452615,-600.7991864,0.00034959,30]
[400636304,1767755452625,-184.409231,0.00034959,30]
[400636305,1767755452636,-600.7991864,0.00034959,30]
[400636306,1767755452645,-193.7694829,0.00034959,30]
[400636307,1767755452655,-153.0,0.00034959,30]
[400636308,1767755452664,-184.409231,0.00034959,30]
[400636309,1767755452673,-600.7991864,0.00034959,30]
[400636310,1767755452685,-600.7991864,0.00034959,30]
[400636311,1767755452695,-184.409231,0.00034959,30]
[400636312,1767755452704,-600.7991864,0.00034959,30]
[400636313,1767755452715,-184.409231,0.00034959,30]
[400636314,1767755452725,-392.2208147,0.00034959,30]
[400636315,1767755452736,-600.7991864,0.00034959,30]
[400636316,1767755452745,-184.409231,0.00034959,30]
[400636317,1767755452754,-184.409231,0.00034959,30]
[400636318,1767755452763,-306.0,0.00034959,30]
[400636319,1767755452773,-184.409231,0.00034959,30]
[400636320,1767755452782,-184.409231,0.00034959,30]
[400636321,1767755452791,-184.409231,0.00034959,30]
[400636322,1767755452801,-184.409231,0.00034959,30]
[400636323,1767755452810,-152.81,0.0003497,60]
[400636324,1767755452822,-1518.18,0.0003497,60]
[400636325,1767755452831,-425.0,0.00035,30]
[400636326,1767755452841,-227.07878402,0.00035,120]
[400636327,1767755452850,-10764.72362607,0.00035,2]
[400636328,1767755452859,-660.59758221,0.00035,2]
[400636329,1767755452869,-158383.23838857,0.00035,5]
[400636330,1767755452878,-196.20993698,0.00035,120]
[400636331,1767755452887,-222.97885672,0.00035,120]
[400636332,1767755452897,-1000.0,0.00035,14]
[400636333,1767755452908,-250.0,0.00035,14]
[400636334,1767755452917,-250.0,0.00035,14]
[400636335,1767755452927,-250.0,0.00035,14]
[400636336,1767755452937,-250.0,0.00035,14]
[400636337,1767755452947,-207.4,0.00035,14]
[400636338,1767755452956,-205.14455082,0.00035,2]
[400636339,1767755453046,-240.0,0.00035,21]
[400636340,1767755453065,-151.0,0.00035,31]
[400636341,1767755453075,-151.0,0.00035,31]
[400636342,1767755453085,-151.0,0.00035,31]
[400636343,1767755453095,-151.0,0.00035,31]
[400636344,1767755453104,-151.0,0.00035,31]
[400636345,1767755453113,-151.0,0.00035,31]
[400636346,1767755453123,-151.0,0.00035,31]
[400636347,1767755453134,-151.0,0.00035,31]
[400636348,1767755453144,-151.0,0.00035,31]
[400636349,1767755453154,-151.0,0.00035,31]
[400636350,1767755453163,-151.0,0.00035,31]
[400636351,1767755453173,-151.0,0.00035,31]
[400636352,1767755453182,-151.0,0.00035,31]
[400636353,1767755453191,-158.997356,0.00035,31]
[400636354,1767755453201,-151.0,0.00035,31]
[400636355,1767755453211,-158.997356,0.00035,31]
[400636356,1767755453220,-151.0,0.00035,31]
[400636357,1767755453230,-158.997356,0.00035,31]
[400636358,1767755453240,-158.997356,0.00035,31]
[400636359,1767755453249,-259.319533,0.00035,31]
[400636360,1767755453259,-151.0,0.00035,31]
[400636361,1767755453269,-500.0,0.00035,31]
[400636362,1767755453279,-500.0,0.00035,31]
[400636363,1767755453289,-500.0,0.00035,31]
[400636364,1767755453299,-500.0,0.00035,31]
[400636365,1767755453309,-151.0,0.00035,31]
[400636366,1767755453319,-151.0,0.00035,31]
[400636367,1767755453329,-151.0,0.00035,31]
[400636368,1767755453339,-151.0,0.00035,31]
[400636369,1767755453349,-151.0,0.00035,31]
[400636370,1767755453359,-151.0,0.00035,31]
[400636371,1767755453370,-158.692862,0.00035,31]
[400636372,1767755453379,-151.0,0.00035,31]
[400636373,1767755453390,-185.3046056,0.00035,31]
[400636374,1767755453401,-151.0,0.00035,31]
[400636375,1767755453411,-151.0,0.00035,31]
[400636376,1767755453422,-151.0,0.00035,31]
[400636377,1767755453432,-156.273726,0.00035,31]
[400636378,1767755453443,-2711.140838,0.00035,31]
[400636379,1767755453453,-156.273726,0.00035,31]
[400636380,1767755453465,-2711.140838,0.00035,31]
[400636381,1767755453476,-156.273726,0.00035,31]
[400636382,1767755453486,-2711.140838,0.00035,31]
[400636383,1767755453496,-156.273726,0.00035,31]
[400636384,1767755453506,-2711.140838,0.00035,31]
[400636385,1767755453516,-324.878871,0.00035,31]
[400636386,1767755453526,-324.878871,0.00035,31]
[400636387,1767755453536,-324.878871,0.00035,31]
[400636388,1767755453546,-324.878871,0.00035,31]
[400636389,1767755453556,-151.0,0.00035,31]
[400636390,1767755453566,-151.0,0.00035,31]
[400636391,1767755453576,-151.0,0.00035,31]
[400636392,1767755453586,-349.207266,0.00035,31]
[400636393,1767755453597,-349.207266,0.00035,31]
[400636394,1767755453606,-349.207266,0.00035,31]
[400636395,1767755453617,-349.207266,0.00035,31]
[400636396,1767755453627,-401.67446,0.00035,31]
[400636397,1767755453636,-401.67446,0.00035,31]
[400636398,1767755453647,-401.67446,0.00035,31]
[400636399,1767755453657,-401.67446,0.00035,31]
[400636400,1767755453666,-883.518597,0.00035,31]
[400636401,1767755453676,-883.518597,0.00035,31]
[400636402,1767755453689,-883.518597,0.00035,31]
[400636403,1767755453700,-883.518597,0.00035,31]
[400636404,1767755453710,-364.504181,0.00035,31]
[400636405,1767755453720,-364.504181,0.00035,31]
[400636406,1767755453731,-364.504181,0.00035,31]
[400636407,1767755453741,-364.504181,0.00035,31]
[400636408,1767755453750,-308.020473,0.00035,31]
[400636409,1767755453761,-308.020473,0.00035,31]
[400636410,1767755453770,-308.020473,0.00035,31]
[400636411,1767755453780,-308.020473,0.00035,31]
[400636412,1767755453789,-310.549692,0.00035,31]
[400636413,1767755453799,-310.549692,0.00035,31]
[400636414,1767755453809,-310.549692,0.00035,31]
[400636415,1767755453818,-310.549692,0.00035,31]
[400636416,1767755453828,-210.445143,0.00035,31]
[400636417,1767755453838,-210.445143,0.00035,31]
[400636418,1767755453848,-210.445143,0.00035,31]
[400636419,1767755453857,-210.445143,0.00035,31]
[400636420,1767755453867,-814.437021,0.00035,31]
[400636421,1767755453877,-814.437021,0.00035,31]
[400636422,1767755453888,-814.437021,0.00035,31]
[400636423,1767755453899,-814.437021,0.00035,31]
[400636424,1767755453908,-151.0,0.00035,31]
[400636425,1767755453918,-151.0,0.00035,31]
[400636426,1767755453928,-151.0,0.00035,31]
[400636427,1767755453938,-151.0,0.00035,31]
[400636428,1767755453949,-151.0,0.00035,31]
[400636429,1767755453958,-151.0,0.00035,31]
[400636430,1767755453968,-151.0,0.00035,31]
[400636431,1767755453978,-167.676279,0.00035,31]
[400636432,1767755453988,-2117.252513,0.00035,31]
[400636433,1767755453998,-2117.252513,0.00035,31]
[400636434,1767755454009,-2117.252513,0.00035,31]
[400636435,1767755454019,-2117.252513,0.00035,31]
[400636436,1767755454029,-292.415007,0.00035,31]
[400636437,1767755454041,-292.415007,0.00035,31]
[400636438,1767755454051,-292.415007,0.00035,31]
[400636439,1767755454061,-1270.137933,0.00035,31]
[400636440,1767755454071,-292.415007,0.00035,31]
[400636441,1767755454082,-1270.137933,0.00035,31]
[400636442,1767755454092,-1270.137933,0.00035,31]
[400636443,1767755454103,-1270.137933,0.00035,31]
[400636444,1767755454112,-391.28206,0.00035,31]
[400636445,1767755454122,-391.28206,0.00035,31]
[400636446,1767755454132,-391.28206,0.00035,31]
[400636447,1767755454142,-391.28206,0.00035,31]
[400636448,1767755454152,-1322.532901,0.00035,28]
[400636449,1767755454161,-1322.532901,0.00035,28]